bitfinex/quotes_ETHUSD_20250414
["timestamp","ask_amount","ask_price","bid_price","bid_amount"]
[1744598410957,4.87353,1641.6,1641.2,0.7909]
[1744598411160,0.06212207,1641.5,1641.3,4.87407]
[1744598411362,0.06212207,1641.5,1641.2,5.66536]
[1744598411716,0.06212207,1641.5,1641.3,4.87414]
[1744598412028,3.0,1641.7,1641.3,4.87414]
[1744598412029,0.06212207,1641.6,1641.3,4.87414]
[1744598412249,0.06212207,1641.6,1641.2,5.66535]
[1744598412250,4.93564207,1641.6,1641.2,5.66535]
[1744598412564,0.06212207,1641.6,1641.2,5.66521]
[1744598412732,0.06212207,1641.6,1641.3,4.874]
[1744598412934,4.8736,1641.5,1641.2,0.7909]
[1744598413247,4.87461,1641.2,1640.9,0.7909]
[1744598413450,0.06212207,1641.2,1641.0,4.87507]
[1744598413628,0.06212207,1641.5,1641.3,4.874]
[1744598413827,4.93515207,1641.7,1641.3,9.74805]
[1744598414015,0.06212207,1641.7,1641.4,4.87379]
[1744598414415,4.93516207,1641.7,1641.3,4.874]
[1744598414612,0.06212207,1641.7,1641.4,4.87383]
[1744598414911,4.93514207,1641.7,1641.3,9.74799]
[1744598415142,0.06212207,1641.7,1641.5,4.87358]
[1744598415345,4.87218,1642.0,1640.7,4.87596]
[1744598415346,0.6448,1641.6,1640.7,4.87596]
[1744598415543,0.6448,1641.6,1640.9,4.87535]
[1744598415544,4.87431,1641.3,1640.9,4.87535]
[1744598415731,0.06212207,1641.2,1640.9,4.87535]
[1744598415933,4.87496,1641.1,1640.6,5.66697]
[1744598416135,4.93721207,1641.0,1640.7,4.87583]
[1744598416457,0.06212207,1641.0,1640.7,4.87583]
[1744598416667,0.06212207,1641.1,1640.7,1.11524621]
[1744598416858,0.06212207,1641.1,1640.9,4.87524]
[1744598417363,0.06212207,1641.1,1640.7,4.87576]
[1744598417364,7.93703207,1641.1,1640.7,4.87576]
[1744598417857,5.5187,1641.4,1640.8,4.8754]
[1744598417858,4.87456,1641.2,1640.8,4.8754]
[1744598418052,0.06212207,1641.1,1640.8,4.8754]
[1744598418551,0.06212207,1641.1,1640.9,4.87533]
[1744598418743,0.06212207,1641.1,1640.8,4.8754]
[1744598418944,0.06212207,1641.2,1640.8,4.8754]
[1744598419145,0.06212207,1641.3,1641.1,4.87477]
[1744598419352,4.93655207,1641.3,1640.8,4.8755]
[1744598419521,4.93655207,1641.3,1640.8,9.75104]
[1744598419727,4.93655207,1641.3,1640.9,4.87523]
[1744598419926,6.28204728,1641.3,1640.8,4.87565]
[1744598420147,4.87458,1641.2,1640.8,9.75112]
[1744598420348,0.06212207,1641.1,1640.8,4.87547]
[1744598420543,0.06212207,1641.1,1640.9,4.87535]
[1744598421265,0.06212207,1641.2,1640.9,9.75055]
[1744598421553,0.06212207,1641.2,1641.0,4.87504]
[1744598421729,1.34552521,1641.3,1641.1,4.87451]
[1744598421730,0.06212207,1641.3,1641.1,4.87451]
[1744598421935,0.06212207,1641.3,1641.2,4.87448]
[1744598422136,0.06212207,1641.3,1641.1,4.87451]
[1744598422137,0.06212207,1641.4,1641.1,4.87451]
[1744598422329,5.49424928,1641.4,1641.0,4.87504]
[1744598422530,4.93617207,1641.4,1641.1,4.87477]
[1744598422753,4.93617207,1641.4,1641.0,4.87504]
[1744598422943,4.93617207,1641.4,1641.0,9.74994]
[1744598423140,4.93617207,1641.4,1641.0,9.7498]
[1744598423554,4.93617207,1641.4,1641.0,4.8749]
[1744598423869,4.93617207,1641.4,1640.8,4.87567]
[1744598423870,5.98149828,1641.4,1640.8,4.87567]
[1744598424075,0.06212207,1641.4,1641.2,4.87444]
[1744598424280,0.06212207,1641.4,1641.2,4.87436]
[1744598424436,0.06212207,1641.4,1640.7,21.65682]
[1744598424437,3.06212207,1641.4,1640.9,4.87535]
[1744598424638,4.87434,1641.3,1640.9,4.87535]
[1744598424869,0.06212207,1641.2,1640.9,4.87535]
[1744598425086,4.93663207,1641.2,1640.9,4.87535]
[1744598425368,4.87483,1641.1,1640.8,4.87564]
[1744598425579,4.87483,1641.1,1640.7,6.16]
[1744598425580,0.06212207,1641.0,1640.7,15.91176]
[1744598425750,4.93724207,1641.0,1640.7,11.03582]
[1744598425949,0.06212207,1641.0,1640.8,4.87555]
[1744598426151,0.06212207,1641.1,1640.8,4.87556]
[1744598426350,0.06212207,1641.1,1640.9,4.87532]
[1744598426551,0.06212207,1641.1,1640.8,4.87556]
[1744598427471,0.06212207,1641.1,1640.9,4.87534]
[1744598427670,0.06212207,1641.1,1640.7,6.16]
[1744598427671,0.06212207,1641.2,1641.0,4.87495]
[1744598428041,0.06212207,1641.2,1640.9,4.87526]
[1744598428269,0.06212207,1641.2,1640.9,4.8752]
[1744598428455,0.06212207,1641.2,1640.9,9.7504]
[1744598428751,0.06212207,1641.2,1641.0,4.87506]
[1744598428975,0.06212207,1641.3,1641.2,4.87448]
[1744598429180,0.06212207,1641.6,1641.2,0.487448]
[1744598429476,0.6448,1641.4,1640.9,4.87528]
[1744598429773,4.87466,1641.2,1640.8,9.75103]
[1744598429939,0.06212207,1641.1,1640.8,4.8755]
[1744598430268,0.06212207,1641.1,1640.7,4.87592]
[1744598430441,4.93708207,1641.1,1640.7,4.87585]
[1744598430640,4.93708207,1641.1,1640.7,4.87581]
[1744598430837,4.93708207,1641.1,1640.7,4.87591]
[1744598430838,6.21824128,1641.1,1640.7,4.87591]
[1744598431068,11.09320128,1641.1,1640.7,4.87591]
[1744598431267,6.21824128,1641.1,1640.7,4.87591]
[1744598431486,0.06212207,1641.2,1641.0,4.87507]
[1744598431772,3.0,1641.3,1641.1,10.02116476]
[1744598431773,0.06212207,1641.3,1641.1,10.02116476]
[1744598431984,0.06212207,1641.4,1641.2,4.87448]
[1744598432158,0.06212207,1641.5,1641.4,4.87388]
[1744598432341,4.93562207,1641.6,1641.4,0.27056988]
[1744598432542,3.49356221,1641.5,1641.2,4.87433]
[1744598432885,0.06212207,1641.4,1641.3,0.2701473]
[1744598433377,10.45254207,1641.8,1641.4,4.87374]
[1744598433570,7.87304,1641.7,1641.5,0.27054132]
[1744598433871,4.93541207,1641.6,1641.5,0.27054132]
[1744598434173,0.06212207,1641.6,1641.5,0.26922856]
[1744598434361,0.06212207,1641.6,1641.3,4.87407]
[1744598434558,0.06212207,1641.6,1641.4,5.14369322]
[1744598434764,0.06212207,1641.7,1641.5,9.74718]
[1744598434968,0.06212207,1641.8,1641.6,5.1416193]
[1744598435135,0.06212207,1641.9,1641.6,5.1416193]
[1744598435341,13.79262716,1642.0,1641.9,4.8724]
[1744598435342,4.04803716,1642.0,1641.9,4.8724]
[1744598435676,4.04803716,1642.0,1641.9,0.26594011]
[1744598435843,4.11015923,1642.0,1641.9,0.26594011]
[1744598436041,4.04803716,1642.0,1641.9,4.8724]
[1744598436378,4.04803716,1642.0,1641.9,5.13645489]
[1744598437149,8.98125923,1642.4,1641.9,10.00885489]
[1744598437350,0.89812592,1642.3,1641.9,5.13645489]
[1744598437670,0.96024799,1642.3,1642.0,4.8721]
[1744598437869,4.87174,1642.2,1641.9,0.26405489]
[1744598438075,0.06212207,1642.1,1641.9,4.87212]
[1744598438275,7.93350207,1642.3,1641.9,4.87212]
[1744598438882,4.87154,1642.2,1641.8,4.87265]
[1744598439087,3.06212207,1642.3,1642.0,4.87184]
[1744598439384,3.77313799,1642.3,1641.8,4.87269]
[1744598439542,0.6448,1642.2,1641.6,11.03327]
[1744598439871,4.93413207,1642.1,1641.6,11.03308]
[1744598440060,4.87222,1642.0,1641.6,15.90624]
[1744598440392,0.06212207,1641.9,1641.6,4.87308]
[1744598441744,4.93464207,1641.9,1641.5,4.87356]
[1744598441964,4.93464207,1641.9,1641.1,5.67864]
[1744598441965,4.87349,1641.6,1641.1,5.67864]
[1744598442155,4.93577207,1641.5,1641.1,5.67864]
[1744598442363,4.93577207,1641.5,1641.2,0.22216661]
[1744598443042,0.06212207,1641.5,1641.2,5.09651661]
[1744598443239,4.93583207,1641.5,1641.2,0.22216661]
[1744598443884,0.06212207,1641.5,1641.2,5.09660661]
[1744598444086,0.06212207,1641.5,1641.3,4.87418]
[1744598444392,3.06212207,1641.6,1641.4,0.22145648]
[1744598444590,0.06212207,1641.6,1641.5,4.87359]
[1744598444793,0.70692207,1641.8,1641.5,5.09675597]
[1744598445353,5.57973207,1641.8,1641.5,0.22316597]
[1744598445568,6.62494828,1641.8,1641.5,0.22316597]
[1744598445777,1.75213828,1641.8,1641.5,5.09672597]
[1744598445994,6.62489828,1641.8,1641.5,0.22316597]
[1744598447100,1.75213828,1641.8,1641.5,0.22316597]
[1744598447297,7.87329,1641.6,1641.5,0.22316597]
[1744598447496,6.51006907,1641.6,1641.2,4.87441]
[1744598447696,9.51006907,1641.6,1641.5,0.22274143]
[1744598447862,9.51006907,1641.6,1641.3,4.87418]
[1744598448058,3.06212207,1641.6,1641.5,0.22282634]
[1744598448260,7.93542207,1641.6,1641.4,0.22258701]
[1744598448463,7.93542207,1641.6,1641.5,0.22214717]
[1744598448805,7.93542207,1641.6,1641.2,4.87437]
[1744598449005,0.06212207,1641.5,1641.3,5.09738162]
[1744598449162,0.06212207,1641.6,1641.3,5.09738162]
[1744598449655,4.93552207,1641.6,1641.3,0.22328162]
[1744598450773,4.93541207,1641.6,1641.3,0.22328162]
[1744598451306,4.93541207,1641.6,1641.3,5.09744162]
[1744598452176,5.51758,1641.8,1641.5,4.87349]
[1744598452381,5.57970207,1641.8,1641.6,0.21730971]
[1744598452563,5.57970207,1641.8,1641.5,4.8735]
[1744598452756,0.06212207,1641.8,1641.6,0.21875137]
[1744598452958,0.70692207,1642.1,1641.8,4.87253]
[1744598453290,0.06212207,1642.2,1641.9,5.08793437]
[1744598453517,0.06212207,1642.2,1641.9,9.96018437]
[1744598453703,0.06212207,1642.2,1642.0,4.87192]
[1744598453865,4.75495923,1642.4,1641.9,0.21567437]
[1744598454053,4.04803716,1642.4,1642.2,4.8714]
[1744598454257,4.04803716,1642.4,1642.2,4.87136]
[1744598454482,4.04803716,1642.4,1642.3,0.20869307]
[1744598455003,4.04803716,1642.4,1642.3,5.07990307]
[1744598455296,4.04803716,1642.4,1642.3,0.20869307]
[1744598455790,4.04803716,1642.4,1642.3,5.07990307]
[1744598456400,4.04803716,1642.4,1642.3,6.07502538]
[1744598456602,4.93195207,1642.8,1642.6,4.87032]
[1744598456603,3.06212207,1642.8,1642.6,4.87032]
[1744598456888,4.93198207,1642.8,1642.7,0.2068285]
[1744598457283,3.06212207,1642.8,1642.5,4.87059]
[1744598457595,4.04803716,1643.1,1642.7,4.86979]
[1744598457891,5.68332495,1643.1,1642.8,0.20520065]
[1744598458061,4.86927,1643.0,1642.8,0.20520065]
[1744598458378,0.06212207,1642.9,1642.6,9.74039]
[1744598458579,0.06212207,1642.9,1642.7,0.20489847]
[1744598458784,0.06212207,1642.9,1642.7,4.86997]
[1744598458986,3.06212207,1643.0,1642.8,0.20390939]
[1744598459184,3.93045457,1643.0,1642.6,4.37026]
[1744598459381,3.93045457,1643.0,1642.7,0.20418715]
[1744598459585,4.04803716,1643.1,1642.8,4.86944]
[1744598459814,0.06212207,1643.1,1642.9,0.20330972]
[1744598460133,0.06212207,1643.1,1642.9,4.86932]
[1744598460274,0.08212207,1643.4,1643.0,9.94095108]
[1744598460631,8.50955628,1643.4,1643.0,9.94079108]
[1744598460776,3.64160628,1643.4,1643.0,9.94079108]
[1744598460972,4.86875,1643.2,1643.0,0.20287108]
[1744598461176,0.06212207,1643.1,1642.7,4.86981]
[1744598461417,4.93109207,1643.1,1642.8,0.20340981]
[1744598461596,7.86943,1642.9,1642.8,0.20340981]
[1744598461771,3.0,1642.9,1642.7,4.86982]
[1744598461973,0.06212207,1643.0,1642.8,5.06439451]
[1744598462173,0.72692207,1643.4,1643.2,4.86835]
[1744598462480,0.72692207,1643.4,1642.8,9.667]
[1744598462700,4.86873,1643.2,1642.8,9.667]
[1744598462887,0.06212207,1643.1,1642.9,0.19505436]
[1744598463107,7.93111207,1643.1,1642.9,0.19505436]
[1744598463406,0.61212207,1643.1,1643.0,0.19677471]
[1744598463612,7.86916,1643.0,1642.6,4.87031]
[1744598463815,0.06212207,1642.9,1642.7,0.19732894]
[1744598464112,0.06212207,1642.9,1642.6,4.87031]
[1744598464407,0.06212207,1642.9,1642.7,0.1980912]
[1744598464611,4.93157207,1642.9,1642.5,4.87049]
[1744598464823,4.86984,1642.8,1642.6,0.19836072]
[1744598464988,0.06212207,1642.7,1642.5,4.87057]
[1744598465191,0.06212207,1642.8,1642.6,0.19836072]
[1744598465978,0.06212207,1642.8,1642.6,5.06864072]
[1744598466390,0.06212207,1642.8,1642.6,0.19836072]
[1744598466908,0.06212207,1642.8,1642.6,5.06867072]
[1744598467114,0.06212207,1642.8,1642.4,9.74161]
[1744598467409,0.06212207,1642.8,1642.5,4.8706]
[1744598467607,0.06212207,1642.8,1642.6,0.1818968]
[1744598467978,0.70692207,1642.9,1642.6,0.1818968]
[1744598468178,0.70692207,1642.9,1642.6,9.74039]
[1744598468378,0.70692207,1642.9,1642.7,0.18094967]
[1744598468609,0.70692207,1642.9,1642.6,4.87019]
[1744598468910,0.70692207,1642.9,1642.7,0.18103437]
[1744598469308,0.70692207,1642.9,1642.6,4.87019]
[1744598469513,0.70692207,1642.9,1642.8,0.18034145]
[1744598469711,0.6648,1643.4,1642.8,4.86973]
[1744598469875,3.0,1643.0,1642.8,0.18025676]
[1744598470214,0.06212207,1642.9,1642.6,5.62404]
[1744598470414,3.0,1643.0,1642.7,0.18078029]
[1744598470613,0.06212207,1642.9,1642.6,5.62404]
[1744598470821,4.93166207,1642.9,1642.7,0.1806956]
[1744598470982,0.49316621,1642.8,1642.5,4.87043]
[1744598471315,4.93166207,1642.9,1642.6,0.18121919]
[1744598471711,0.06212207,1642.9,1642.6,5.05142919]
[1744598471923,0.06212207,1642.9,1642.6,0.18121919]
[1744598472215,4.87058,1642.6,1642.2,4.87151]
[1744598472415,4.87058,1642.6,1642.3,0.16886845]
[1744598472416,0.06212207,1642.6,1642.3,0.16886845]
[1744598472714,0.06212207,1642.6,1642.1,52.9949]
[1744598472715,3.06212207,1642.7,1642.4,4.87087]
[1744598472918,3.06212207,1642.7,1642.4,5.03865005]
[1744598473084,3.06212207,1642.7,1642.5,4.87044]
[1744598473283,3.06212207,1642.9,1642.5,4.87044]
[1744598473503,8.78926928,1642.9,1642.6,0.16800061]
[1744598474386,3.91972928,1642.9,1642.6,0.16800061]
[1744598474590,3.0,1642.9,1642.7,4.86988]
[1744598474898,3.0,1642.9,1642.8,0.16686883]
[1744598475093,3.06212207,1643.1,1642.8,5.03659883]
[1744598475296,3.06212207,1643.1,1642.8,9.90620883]
[1744598475489,3.06212207,1643.1,1642.9,4.86942]
[1744598475691,0.06212207,1643.1,1642.9,4.86942]
[1744598475891,0.06212207,1643.2,1643.0,5.03388874]
[1744598476715,4.86884,1643.1,1643.0,0.16474874]
[1744598477121,5.23699428,1643.2,1642.8,4.8697]
[1744598477317,0.06212207,1643.2,1643.0,5.03438676]
[1744598477617,0.08212207,1643.4,1643.1,4.86866]
[1744598477809,4.95008207,1643.4,1643.1,5.03356274]
[1744598478115,3.08212207,1643.4,1643.1,5.03356274]
[1744598478415,3.08212207,1643.4,1643.1,9.90226274]
[1744598478617,7.95019207,1643.4,1643.1,0.16490274]
[1744598479005,4.86835,1643.3,1643.1,0.16490274]
[1744598479204,0.06212207,1643.2,1643.0,4.86913]
[1744598479399,0.06212207,1643.2,1643.1,0.162503]
[1744598479597,4.93040207,1643.3,1643.1,0.162503]
[1744598480199,4.93040207,1643.3,1642.7,4.86993]
[1744598480200,7.86854,1643.2,1642.7,4.86993]
[1744598480399,4.86925,1643.0,1642.8,0.16373451]
[1744598480613,0.06212207,1642.9,1642.6,9.74046]
[1744598480810,0.06212207,1642.9,1642.7,0.14858269]
[1744598481035,0.06212207,1642.9,1642.5,0.8004]
[1744598481323,4.86986,1642.8,1642.6,0.14902158]
[1744598481500,4.93215207,1642.7,1642.6,0.14902158]
[1744598481687,4.93215207,1642.7,1642.4,14.23774]
[1744598481884,4.93215207,1642.7,1642.6,0.13860976]
[1744598482087,4.93215207,1642.7,1642.5,0.1390487]
[1744598482324,4.93215207,1642.7,1642.6,0.13860976]
[1744598482718,4.93215207,1642.7,1642.4,4.87074]
[1744598482928,7.10715328,1642.7,1642.6,0.13860976]
[1744598483132,5.42032,1642.6,1642.5,0.1390487]
[1744598483291,4.87197,1642.1,1641.6,10.54696]
[1744598483492,0.06212207,1642.0,1641.7,4.87298]
[1744598483692,0.06212207,1642.0,1641.7,5.00413784]
[1744598484226,9.74407,1642.1,1641.7,0.13115784]
[1744598484227,4.8724,1641.9,1641.7,0.13115784]
[1744598484526,4.8724,1641.9,1641.5,19.11285]
[1744598484834,4.93452207,1641.9,1641.5,14.23942]
[1744598485025,4.93452207,1641.9,1641.6,0.13159729]
[1744598485231,4.87299,1641.7,1641.6,0.13159729]
[1744598485436,4.93511207,1641.7,1641.3,4.87416]
[1744598485608,3.0,1641.6,1641.4,0.12510525]
[1744598485806,3.0,1641.6,1641.3,4.87416]
[1744598486007,0.06212207,1641.7,1641.4,0.12519001]
[1744598486205,4.93512207,1641.7,1641.3,4.87415]
[1744598486411,4.93512207,1641.7,1641.4,0.12510525]
[1744598486610,4.93512207,1641.7,1641.3,9.74822]
[1744598486929,4.93512207,1641.7,1641.4,0.12510525]
[1744598487330,4.93512207,1641.7,1641.1,9.8644]
[1744598487331,0.06212207,1641.7,1641.1,14.73912]
[1744598487517,4.93517207,1641.7,1641.5,0.12475046]
[1744598487723,4.93517207,1641.7,1641.3,4.87406]
[1744598487958,3.0,1641.7,1641.6,0.1242262]
[1744598488102,0.06212207,1641.8,1641.6,4.87322]
[1744598488445,3.06212207,1642.0,1641.7,4.87288]
[1744598488598,3.06212207,1642.0,1641.8,0.12908278]
[1744598488599,12.80658207,1642.0,1641.8,0.12908278]
[1744598488797,12.80658207,1642.0,1641.4,4.87386]
[1744598488798,4.8724,1641.9,1641.4,4.87386]
[1744598489035,4.87347,1641.6,1641.5,0.13048568]
[1744598489231,0.06212207,1641.8,1641.4,4.87373]
[1744598489537,3.0,1641.7,1641.5,0.13040095]
[1744598489847,0.06212207,1641.6,1641.5,0.13040095]
[1744598490223,0.06212207,1641.6,1641.3,4.87403]
[1744598490423,7.93556207,1641.6,1641.4,0.13100993]
[1744598490626,7.93556207,1641.6,1641.2,5.67486]
[1744598490805,7.93556207,1641.6,1641.3,0.13144949]
[1744598491144,4.87372,1641.5,1641.3,0.13144949]
[1744598491354,9.28089928,1641.6,1641.3,0.13144949]
[1744598491664,7.87359,1641.5,1641.4,0.13100993]
[1744598491822,7.87359,1641.5,1641.0,4.87504]
[1744598491823,4.87417,1641.4,1641.0,4.87504]
[1744598492017,4.87417,1641.4,1640.7,5.67633]
[1744598492018,4.87448,1641.2,1641.1,0.13224402]
[1744598492328,7.87448,1641.2,1640.8,4.87561]
[1744598492522,0.06212207,1641.1,1640.8,4.87555]
[1744598492727,4.93693207,1641.1,1640.7,5.67633]
[1744598492924,4.8752,1641.0,1640.6,4.87622]
[1744598493115,0.06212207,1640.9,1640.6,4.87622]
[1744598493315,6.22040121,1641.1,1640.8,9.75115]
[1744598493316,3.06212207,1641.1,1640.8,9.75115]
[1744598493513,7.93690207,1641.1,1640.7,4.87581]
[1744598493745,4.87509,1641.0,1640.7,4.87581]
[1744598494046,0.06212207,1640.9,1640.6,4.87615]
[1744598494244,0.06212207,1640.9,1640.6,9.7523]
[1744598494448,0.06212207,1640.9,1640.7,4.87586]
[1744598494623,0.06212207,1641.0,1640.7,4.87586]
[1744598495213,3.0,1641.1,1640.8,4.87555]
[1744598495630,3.0,1641.1,1640.8,4.87553]
[1744598496018,3.0,1641.1,1640.5,6.0809269]
[1744598496019,4.93730207,1641.0,1640.6,4.87602]
[1744598496234,4.93730207,1641.0,1640.5,6.0808669]
[1744598496556,4.93730207,1641.0,1640.6,4.87624]
[1744598497049,4.93730207,1641.0,1640.7,4.87593]
[1744598497250,3.0,1641.3,1641.0,4.87483]
[1744598497451,3.06212207,1641.3,1641.0,4.87483]
[1744598497658,3.06212207,1641.3,1641.1,0.13945823]
[1744598497856,0.6448,1641.5,1641.2,4.87425]
[1744598498054,5.58053207,1641.5,1641.3,0.13790118]
[1744598498351,4.87331,1641.6,1641.2,4.87436]
[1744598498552,0.70692207,1641.7,1641.4,4.87382]
[1744598498932,0.70692207,1641.7,1641.3,5.01272994]
[1744598498933,3.06212207,1641.8,1641.5,4.87342]
[1744598499227,0.06212207,1641.8,1641.6,4.87327]
[1744598499427,0.06212207,1641.8,1641.7,0.13382597]
[1744598499655,0.06212207,1641.8,1641.7,4.87299]
[1744598499982,0.06212207,1642.0,1641.8,4.87264]
[1744598500322,0.06212207,1642.0,1641.9,0.13197287]
[1744598501120,0.06212207,1642.0,1641.9,5.00437287]
[1744598501455,0.06212207,1642.3,1641.9,0.13197287]
[1744598501621,4.8721,1642.0,1641.9,0.13197287]
[1744598501828,5.97310507,1642.0,1641.6,4.87314]
[1744598502127,0.06212207,1642.0,1641.8,4.87266]
[1744598502524,0.06212207,1642.0,1641.9,0.13402682]
[1744598502924,3.0,1642.2,1641.9,5.00642682]
[1744598503120,3.06212207,1642.2,1641.9,5.00622682]
[1744598503443,0.06212207,1642.3,1642.0,4.87199]
[1744598503753,0.06212207,1642.4,1642.2,4.87138]
[1744598503957,0.06212207,1642.4,1642.2,9.74273]
[1744598504120,0.06212207,1642.4,1642.3,0.12908351]
[1744598504522,4.93304207,1642.4,1642.3,0.12908351]
[1744598504759,9.12784207,1642.4,1642.3,0.12908351]
[1744598504961,5.51711,1642.0,1641.6,4.87327]
[1744598505124,0.06212207,1641.9,1641.6,4.87327]
[1744598505327,0.06212207,1641.9,1641.7,0.11368416]
[1744598505748,0.06212207,1641.9,1641.6,4.87327]
[1744598506022,0.06212207,1641.9,1641.7,0.11368416]
[1744598506342,0.06212207,1641.9,1641.6,4.87327]
[1744598506542,0.06212207,1641.9,1641.7,0.11368416]
[1744598506854,4.87342,1641.6,1641.2,4.87436]
[1744598507024,4.93573207,1641.5,1641.1,5.69524]
[1744598507225,4.87461,1641.2,1640.8,5.69604]
[1744598507535,0.06212207,1641.1,1640.9,4.87524]
[1744598507855,0.06212207,1641.2,1640.9,4.87521]
[1744598508061,0.06212207,1641.2,1641.0,4.87504]
[1744598508229,0.06212207,1641.2,1640.9,4.87521]
[1744598508763,4.87433,1641.3,1640.9,4.87521]
[1744598509059,0.06212207,1641.2,1641.0,4.87497]
[1744598509946,8.88761428,1641.2,1640.6,5.69676]
[1744598510166,4.87498,1641.1,1640.6,5.69676]
[1744598510332,4.87498,1641.1,1640.5,0.3996769]
[1744598510333,5.52095,1640.7,1640.5,0.3996769]
[1744598510532,7.93838207,1640.6,1640.5,0.3996769]
[1744598510760,9.28431528,1640.6,1640.5,0.3996769]
[1744598511443,22.03066856,1640.6,1640.5,0.3996769]
[1744598511650,28.78334649,1640.6,1640.5,0.3996769]
[1744598511982,9.07225,1640.2,1640.1,0.025]
[1744598512132,9.13437207,1640.2,1640.1,0.025]
[1744598512330,10.53553528,1640.2,1640.1,0.025]
[1744598513138,6.07284,1640.0,1639.9,0.005]
[1744598513336,21.33431535,1640.0,1639.9,0.005]
[1744598513548,6.07403,1639.6,1639.5,0.005]
[1744598513767,9.13615207,1639.6,1639.5,0.005]
[1744598513974,10.8801066,1639.6,1639.5,0.005]
[1744598514172,17.0501066,1639.6,1639.5,0.005]
[1744598514347,16.98798453,1639.6,1639.5,0.005]
[1744598516060,16.98798453,1639.6,1639.1,0.02]
[1744598516061,6.07522,1639.2,1639.1,0.02]
[1744598516262,25.17788707,1639.2,1639.1,0.02]
[1744598516470,25.115765,1639.2,1639.1,0.02]
[1744598516762,16.340765,1639.2,1639.1,0.02]
[1744598516945,25.118765,1639.2,1639.1,0.02]
[1744598518762,0.55,1638.4,1638.1,0.02]
[1744598518994,0.06212207,1638.4,1638.1,0.02]
[1744598519272,8.4334,1638.2,1638.1,0.02]
[1744598519593,3.61212207,1638.2,1638.1,0.02]
[1744598519736,3.06212207,1638.2,1638.1,0.02]
[1744598520098,8.49552207,1638.2,1638.1,0.02]
[1744598520383,10.51489028,1638.2,1638.1,0.02]
[1744598520589,17.27652207,1638.2,1638.1,0.02]
[1744598520884,0.6448,1638.3,1638.1,0.02]
[1744598521088,0.6448,1638.6,1638.5,4.88251]
[1744598521290,8.781,1639.0,1638.5,0.13091994]
[1744598521452,4.88195,1638.7,1638.3,0.8205]
[1744598521653,7.88253,1638.5,1638.4,0.13124558]
[1744598521879,8.43253,1638.5,1638.1,4.90355]
[1744598522177,0.55,1638.4,1638.2,0.1322981]
[1744598522390,0.6448,1638.9,1638.2,0.1322981]
[1744598522391,0.6448,1638.8,1638.2,5.0155781]
[1744598522549,5.52656,1638.8,1638.3,5.70343]
[1744598522744,6.567349,1638.8,1638.3,10.58631]
[1744598522948,3.0,1638.7,1638.4,0.13209492]
[1744598523145,0.06212207,1638.7,1638.4,0.13209492]
[1744598523351,3.06212207,1638.7,1638.4,4.88261]
[1744598523563,0.06212207,1638.7,1638.5,4.88232]
[1744598523771,8.7593,1639.0,1638.5,0.13139882]
[1744598523772,0.06212207,1638.9,1638.5,0.13139882]
[1744598523971,0.06212207,1639.0,1638.7,4.88172]
[1744598524196,0.06212207,1639.0,1638.8,4.88148]
[1744598524508,4.88046,1639.2,1638.8,4.88148]
[1744598524509,0.06212207,1639.2,1639.1,4.88056]
[1744598524712,0.06212207,1639.4,1639.1,4.88056]
[1744598524882,0.06212207,1639.4,1639.2,4.84975]
[1744598525216,0.6448,1639.9,1639.3,5.76297252]
[1744598525415,0.6448,1639.9,1639.5,4.87931]
[1744598525416,0.06212207,1639.8,1639.5,4.87931]
[1744598525697,0.06212207,1639.8,1639.7,4.87894]
[1744598526003,0.06212207,1640.1,1639.7,0.1276793]
[1744598526165,4.69283716,1640.5,1639.9,4.8782]
[1744598526166,3.0,1640.2,1639.9,4.8782]
[1744598526494,0.06212207,1640.1,1639.9,4.8782]
[1744598526795,0.06212207,1640.2,1639.8,4.87845]
[1744598527098,0.06212207,1640.2,1639.9,5.00407974]
[1744598527422,0.06212207,1640.2,1639.9,4.8783]
[1744598527566,0.06212207,1640.3,1640.0,4.87804]
[1744598527913,0.56212207,1640.3,1640.0,0.12533923]
[1744598528500,0.06212207,1640.5,1640.4,4.87666]
[1744598528734,4.87524,1641.0,1640.5,4.8764]
[1744598528735,0.06212207,1640.7,1640.5,4.8764]
[1744598528884,4.93749207,1640.9,1640.5,4.8764]
[1744598529195,3.06212207,1640.9,1640.6,4.99753823]
[1744598529399,0.06212207,1640.9,1640.6,4.99753823]
[1744598529571,4.87571,1640.8,1640.6,0.12129823]
[1744598529776,0.06212207,1640.7,1640.4,4.87665]
[1744598529976,4.93779207,1640.8,1640.4,4.87665]
[1744598530196,0.06212207,1640.8,1640.5,4.87633]
[1744598530369,0.06212207,1640.8,1640.6,4.87623]
[1744598531482,0.06212207,1640.8,1640.5,9.75267]
[1744598531669,0.06212207,1640.8,1640.5,4.87633]
[1744598531886,6.37649628,1640.8,1640.3,5.63492]
[1744598532090,4.87668,1640.5,1640.1,4.87772]
[1744598532271,0.06212207,1640.4,1640.2,4.87743]
[1744598532472,4.87716,1640.3,1640.0,0.7579]
[1744598532700,4.93959207,1640.2,1639.8,4.87849]
[1744598532903,0.06212207,1640.2,1639.9,4.87832]
[1744598533199,4.87803,1640.1,1639.7,5.6367]
[1744598533404,0.06212207,1640.0,1639.8,4.87852]
[1744598533578,3.06212207,1640.2,1640.0,4.87785]
[1744598533777,3.0,1640.5,1640.1,4.87775]
[1744598534091,0.06212207,1640.5,1640.2,4.8773]
[1744598534293,0.06212207,1640.6,1640.3,10.51197]
[1744598534602,3.06212207,1640.6,1640.3,10.51197]
[1744598534802,3.06212207,1640.6,1640.3,5.63493]
[1744598535020,4.87677,1640.5,1640.0,4.87804]
[1744598535219,4.87677,1640.5,1640.0,4.87791]
[1744598535220,0.06212207,1640.4,1640.0,4.87791]
[1744598535419,0.06212207,1640.4,1640.1,4.87772]
[1744598535624,7.93908207,1640.4,1640.0,4.87791]
[1744598536341,4.87757,1640.2,1639.9,0.7579]
[1744598536505,0.06212207,1640.1,1640.0,4.87804]
[1744598536701,3.0,1640.4,1640.1,4.87761]
[1744598536702,0.06212207,1640.3,1640.1,4.87761]
[1744598536918,3.0,1640.5,1640.2,0.0609704]
[1744598537100,4.87548,1640.9,1640.5,4.87656]
[1744598537299,0.06212207,1640.8,1640.5,4.87656]
[1744598537504,4.87615,1640.7,1640.2,9.75471]
[1744598537706,9.7541,1640.4,1640.1,0.7579]
[1744598538033,3.54973707,1640.6,1639.8,4.87862]